fUSD/lending_fUSD_20250308
["ID","MTS","AMOUNT","RATE_DAILY","PERIOD"]
[355652082,1741437671692,-1348.83320043,0.00045275,120]
[355652083,1741437671719,-587922.21784145,0.00045278,120]
[355652084,1741437671911,-1567.87044583,0.00045278,120]
[355652085,1741437671942,-307.74683025,0.00045279,120]
[355652086,1741437671970,-3860.11611418,0.0004528,120]
[355652087,1741437671996,-231.20706658,0.0004528,120]
[355652088,1741437672022,-295.024892,0.00045282,120]
[355652089,1741437672050,-3818.17514385,0.00045283,120]
[355652090,1741437672086,-221.64430805,0.00045284,120]
[355652091,1741437672112,-200.0,0.00045284,120]
[355652092,1741437672139,-231.20706658,0.00045285,120]
[355652093,1741437672166,-3860.11611418,0.00045287,120]
[355652094,1741437672194,-13964.99818846,0.00045288,120]
[355652095,1741437672219,-2009.09678,0.00045288,30]
[355652096,1741437672245,-200.0,0.00045291,120]
[355652097,1741437672271,-16062.80996485,0.00045296,120]
[355652098,1741437672300,-3860.11611418,0.00045297,120]
[355652099,1741437672327,-2313.11402703,0.00045301,120]
[355652100,1741437672353,-295.024892,0.00045302,120]
[355652101,1741437672381,-486.96257192,0.00045306,120]
[355652102,1741437672408,-200.0,0.00045307,120]
[355652103,1741437672437,-200.0,0.00045308,120]
[355652104,1741437672464,-13964.99818846,0.0004531,120]
[355652105,1741437672491,-5257.94204526,0.00045313,120]
[355652106,1741437672518,-13859.61962573,0.00045313,120]
[355652107,1741437672544,-6905.80670091,0.00045316,120]
[355652108,1741437672571,-8105.0407168,0.00045316,120]
[355652109,1741437672597,-486.96257192,0.0004532,120]
[355652110,1741437672625,-203.0926774,0.00045322,120]
[355652111,1741437672651,-200.0,0.00045324,120]
[355652112,1741437672680,-3101.23331275,0.00045325,120]
[355652113,1741437672706,-2997.0269658,0.00045329,120]
[355652114,1741437672734,-296.73584707,0.00045329,120]
[355652115,1741437672765,-203.0926774,0.00045331,120]
[355652116,1741437672792,-5257.94204526,0.00045331,120]
[355652117,1741437672819,-2997.0269658,0.00045332,120]
[355652118,1741437672845,-3860.11611418,0.00045334,120]
[355652119,1741437672872,-2886.95739967,0.00045334,120]
[355652120,1741437672898,-200.0,0.00045338,120]
[355652121,1741437672923,-6353.52434207,0.00045341,120]
[355652122,1741437672948,-6353.52434207,0.00045341,120]
[355652123,1741437672974,-1716.05037423,0.00045342,120]
[355652124,1741437672999,-435.93674881,0.00045342,120]
[355652125,1741437673025,-1348.83320043,0.00045342,120]
[355652126,1741437673051,-200.0,0.00045346,120]
[355652127,1741437673077,-1716.05037423,0.00045346,120]
[355652128,1741437673103,-221.64430805,0.00045346,120]
[355652129,1741437673129,-378.49248076,0.00045347,120]
[355652130,1741437673155,-13859.61962573,0.00045348,120]
[355652131,1741437673183,-67281.92853388,0.00045349,120]
[355652132,1741437673209,-6271.4817833,0.00045349,120]
[355652133,1741437673236,-3222.57738925,0.00045352,120]
[355652134,1741437673263,-3222.57738925,0.00045352,120]
[355652135,1741437673294,-2997.0269658,0.00045355,120]
[355652136,1741437673321,-6353.52434207,0.00045355,120]
[355652137,1741437673352,-8105.0407168,0.00045355,120]
[355652138,1741437673595,-2886.95739967,0.00045359,120]
[355652139,1741437673976,-5257.94204526,0.0004536,120]
[355652140,1741437674344,-200.0,0.0004536,120]
[355652141,1741437674611,-1040.5147012,0.00045363,120]
[355652142,1741437674685,-2997.0269658,0.00045366,120]
[355652143,1741437674714,-587922.21784145,0.00045367,120]
[355652144,1741437674742,-1993.04410675,0.00045369,120]
[355652145,1741437674768,-3101.23331275,0.0004537,120]
[355652146,1741437674796,-25069.38076352,0.00045371,120]
[355652147,1741437674823,-1040.5147012,0.00045373,120]
[355652148,1741437674851,-3818.17514385,0.00045374,120]
[355652149,1741437674879,-1993.04410675,0.00045376,120]
[355652150,1741437674906,-2712.41108255,0.0004538,120]
[355652151,1741437674933,-6365.44348451,0.00045381,120]
[355652152,1741437674959,-2313.11402703,0.00045382,120]
[355652153,1741437674986,-16062.80996485,0.00045382,120]
[355652154,1741437675012,-17868.13226698,0.00045384,120]
[355652155,1741437675039,-1348.83320043,0.00045385,120]
[355652156,1741437675066,-1085.202562,0.00045391,120]
[355652157,1741437675092,-25069.38076352,0.00045395,120]
[355652158,1741437675117,-203.0926774,0.00045397,120]
[355652159,1741437675142,-775.79,0.000454,120]
[355652160,1741437675168,-2009.09678,0.00045488,30]
[355652161,1741437675196,-1000000.0,0.000455,120]
[355652162,1741437675222,-617625.50274714,0.000455,120]
[355652163,1741437759648,365.0,0.00025331,120]
[355652164,1741437762045,150.0,0.00025331,30]
[355652165,1741437762242,204.4,0.00025331,30]
[355652166,1741437781360,1000.0,0.00025657,30]
[355652167,1741437786315,1000.0,0.00025657,60]
[355652168,1741437791308,1000.0,0.00025657,60]
[355652169,1741437810007,1000.0,0.00025657,30]
[355652170,1741437821841,1000.0,0.00025657,30]
[355652171,1741437833680,1000.0,0.00025657,30]
[355652172,1741437843322,165.5,7.8e-05,2]
[355652173,1741437844821,1714.74138869,0.00025657,60]
[355652174,1741437845511,1000.0,0.00025657,30]
[355652175,1741437857319,1000.0,0.00025657,30]
[355652176,1741437869176,1000.0,0.00025657,30]
[355652177,1741437880976,1000.0,0.00025657,60]
[355652178,1741437892897,1000.0,0.00025657,30]
[355652179,1741437903159,1652.0794038,0.00025657,120]
[355652180,1741437904695,1000.0,0.00025657,60]
[355652181,1741437916761,1000.0,0.00025657,30]
[355652185,1741437948425,1000.0,0.00025657,30]
[355652186,1741437949266,1000.0,0.00025657,30]
[355652187,1741437949715,1000.0,0.00025657,30]
[355652188,1741437950322,1000.0,0.00025657,30]
[355652189,1741437950923,1000.0,0.00025657,30]
[355652190,1741437951481,1000.0,0.00025657,30]
[355652191,1741437952070,1000.0,0.00025657,30]
[355652192,1741437952759,1000.0,0.00025657,30]
[355652193,1741437953436,1000.0,0.00025657,30]
[355652194,1741437954087,1000.0,0.00025657,30]
[355652195,1741437954655,1000.0,0.00025657,30]
[355652196,1741437955251,1000.0,0.00025657,30]
[355652197,1741437956219,1000.0,0.00025657,30]
[355652198,1741437956798,1000.0,0.00025657,30]
[355652199,1741437957378,1000.0,0.00025657,30]
[355652200,1741437958596,1000.0,0.00025657,30]
[355652201,1741437959045,1000.0,0.00025657,30]
[355652202,1741437959609,1000.0,0.00025657,30]
[355652203,1741437960193,1000.0,0.00025657,30]
[355652204,1741437961346,1000.0,0.00025657,30]
[355652205,1741437961932,1000.0,0.00025657,30]
[355652206,1741437962567,1000.0,0.00025657,30]
[355652207,1741437963639,685.14768509,0.00025657,30]
[355652209,1741438015306,289.32,7.616e-05,2]
[355652216,1741438045116,10000.0,0.00025657,30]
[355652217,1741438049710,600.0,7.9e-05,2]
[355652218,1741438052080,1200.0,8e-05,2]
[355652224,1741438056081,90000.0,0.00025657,30]
[355652334,1741438232512,-305.72859,8.084e-05,2]
[355652335,1741438232563,-123.96141,8.084e-05,2]
[355652336,1741438232573,-181.76718,8.086e-05,2]
[355652381,1741438238234,-368.23282,8.086e-05,2]
[355652382,1741438238243,-150.0,8.088e-05,2]
[355652383,1741438238253,-6638.1942,8.119e-05,2]
[355652384,1741438238263,-165.5,8.122e-05,2]
[355652385,1741438238273,-593.0,8.164e-05,2]
[355652386,1741438238282,-160.25983625,8.193e-05,2]
[355652387,1741438238292,-361.14648906,8.193e-05,2]
[355652388,1741438238302,-300.0,8.217e-05,2]
[355652389,1741438238311,-51056.32390218,8.218e-05,2]
[355652390,1741438238321,-500.0,8.218e-05,2]
[355652391,1741438238330,-500.0,8.218e-05,2]
[355652392,1741438238339,-500.0,8.218e-05,2]
[355652393,1741438238349,-500.0,8.218e-05,2]
[355652394,1741438238359,-215.12737979,8.218e-05,2]
[355652395,1741438238368,-435.0246704,8.218e-05,2]
[355652396,1741438238377,-150.0,8.218e-05,2]
[355652397,1741438238387,-168.89506,8.219e-05,2]
[355652398,1741438238396,-185.934193,8.219e-05,2]
[355652399,1741438238405,-161.857763,8.219e-05,2]
[355652400,1741438238414,-508.77333169,8.219e-05,2]
[355652401,1741438238424,-500.0,8.219e-05,2]
[355652402,1741438238434,-500.0,8.219e-05,2]
[355652403,1741438238445,-500.0,8.219e-05,2]
[355652404,1741438238456,-524.73,8.219e-05,2]
[355652405,1741438238467,-500.0,8.219e-05,2]
[355652407,1741438238476,-500.0,8.219e-05,2]
[355652409,1741438238486,-501.2603289,8.219e-05,2]
[355652411,1741438238495,-503.20799685,8.219e-05,2]
[355652413,1741438238506,-544.06,8.219e-05,2]
[355652415,1741438238515,-562.11,8.219e-05,2]
[355652417,1741438238524,-644.8,8.219e-05,2]
[355652419,1741438238536,-465.62,8.219e-05,2]
[355652421,1741438238546,-500.0,8.219e-05,2]
[355652423,1741438238560,-500.0,8.219e-05,2]
[355652425,1741438238576,-500.0,8.219e-05,2]
[355652427,1741438238586,-500.0,8.219e-05,2]
[355652429,1741438238596,-500.0,8.219e-05,2]
[355652431,1741438238606,-500.0,8.219e-05,2]
[355652433,1741438238615,-593.7539122,8.219e-05,2]
[355652435,1741438238626,-500.0,8.219e-05,2]
[355652437,1741438238636,-500.0,8.219e-05,2]
[355652439,1741438238646,-500.0,8.219e-05,2]
[355652441,1741438238659,-500.0,8.219e-05,2]
[355652443,1741438238673,-500.0,8.219e-05,2]
[355652445,1741438238683,-500.0,8.219e-05,2]
[355652447,1741438238693,-500.0,8.219e-05,2]
[355652449,1741438238705,-508.24443243,8.219e-05,2]
[355652451,1741438238716,-500.0,8.219e-05,2]
[355652453,1741438238725,-500.0,8.219e-05,2]
[355652455,1741438238734,-500.0,8.219e-05,2]
[355652457,1741438238743,-500.0,8.219e-05,2]
[355652459,1741438238753,-500.0,8.219e-05,2]
[355652461,1741438238762,-500.0,8.219e-05,2]
[355652464,1741438238772,-555.54,8.219e-05,2]
[355652465,1741438238782,-500.0,8.219e-05,2]
[355652467,1741438238791,-503.89743274,8.219e-05,2]
[355652469,1741438238800,-503.80834717,8.219e-05,2]
[355652471,1741438238810,-500.0,8.219e-05,2]
[355652473,1741438238819,-500.0,8.219e-05,2]
[355652476,1741438238829,-504.20639759,8.219e-05,2]
[355652478,1741438238839,-500.0,8.219e-05,2]
[355652480,1741438238849,-500.0,8.219e-05,2]
[355652482,1741438238858,-500.0,8.219e-05,2]
[355652484,1741438238868,-512.28,8.219e-05,2]
[355652486,1741438238877,-500.71123218,8.219e-05,2]
[355652488,1741438238887,-500.0,8.219e-05,2]
[355652489,1741438238897,-500.0,8.219e-05,2]
[355652491,1741438238906,-251.93184809,8.219e-05,2]
[355652493,1741438238916,-506.21368861,8.219e-05,2]
[355652495,1741438238925,-500.0,8.219e-05,2]
[355652497,1741438238935,-500.0,8.219e-05,2]
[355652499,1741438238945,-500.0,8.219e-05,2]
[355652501,1741438238954,-500.0,8.219e-05,2]
[355652504,1741438238964,-500.0,8.219e-05,2]
[355652506,1741438238973,-500.0,8.219e-05,2]
[355652507,1741438238982,-384.07262601,8.219e-05,2]
[355652509,1741438238992,-500.0,8.219e-05,2]
[355652511,1741438239001,-500.0,8.219e-05,2]
[355652514,1741438239011,-500.0,8.219e-05,2]
[355652515,1741438239020,-503.61371851,8.219e-05,2]
[355652517,1741438239030,-500.0,8.219e-05,2]
[355652520,1741438239039,-500.0,8.219e-05,2]
[355652521,1741438239049,-500.0,8.219e-05,2]
[355652524,1741438239059,-500.0,8.219e-05,2]
[355652526,1741438239068,-649.1,8.219e-05,2]
[355652528,1741438239077,-462.26605502,8.219e-05,2]
[355652529,1741438239087,-500.0,8.219e-05,2]
[355652531,1741438239096,-639.04,8.219e-05,2]
[355652533,1741438239106,-500.0,8.219e-05,2]
[355652535,1741438239116,-612.88,8.219e-05,2]
[355652537,1741438239126,-547.95,8.219e-05,2]
[355652540,1741438239137,-500.0,8.219e-05,2]
[355652542,1741438239146,-500.0,8.219e-05,2]
[355652544,1741438239156,-639.62,8.219e-05,2]
[355652546,1741438239166,-500.0,8.219e-05,2]
[355652548,1741438239176,-500.0,8.219e-05,2]
[355652550,1741438239186,-500.0,8.219e-05,2]
[355652552,1741438239196,-500.0,8.219e-05,2]
[355652554,1741438239206,-502.55061505,8.219e-05,2]
[355652556,1741438239215,-500.0,8.219e-05,2]
[355652558,1741438239224,-500.0,8.219e-05,2]
[355652581,1741438239448,-647.05,8.219e-05,2]
[355652582,1741438239459,-500.0,8.219e-05,2]
[355652584,1741438239470,-500.0,8.219e-05,2]
[355652586,1741438239479,-500.0,8.219e-05,2]
[355652588,1741438239488,-500.0,8.219e-05,2]
[355652590,1741438239498,-500.0,8.219e-05,2]
[355652592,1741438239507,-500.0,8.219e-05,2]
[355652594,1741438239516,-500.0,8.219e-05,2]
[355652596,1741438239526,-500.0,8.219e-05,2]
[355652598,1741438239535,-519.51,8.219e-05,2]
[355652600,1741438239546,-500.0,8.219e-05,2]
[355652602,1741438239555,-500.0,8.219e-05,2]
[355652604,1741438239564,-500.0,8.219e-05,2]
[355652606,1741438239573,-500.0,8.219e-05,2]
[355652608,1741438239582,-500.0,8.219e-05,2]
[355652610,1741438239591,-500.0,8.219e-05,2]
[355652612,1741438239601,-500.0,8.219e-05,2]
[355652614,1741438239610,-500.0,8.219e-05,2]
[355652616,1741438239620,-500.0,8.219e-05,2]
[355652618,1741438239629,-589.15146078,8.219e-05,2]
[355652620,1741438239639,-500.0,8.219e-05,2]
[355652622,1741438239648,-500.0,8.219e-05,2]
[355652624,1741438239657,-505.84845188,8.219e-05,2]
[355652626,1741438239666,-500.0,8.219e-05,2]
[355652628,1741438239676,-504.26349904,8.219e-05,2]
[355652630,1741438239685,-281.0043788,8.219e-05,2]
[355652632,1741438239696,-372.44349842,8.219e-05,2]
[355652634,1741438239706,-500.0,8.219e-05,2]
[355652636,1741438239715,-500.0,8.219e-05,2]
[355652638,1741438239725,-500.0,8.219e-05,2]
[355652640,1741438239734,-500.0,8.219e-05,2]
[355652641,1741438239743,-500.0,8.219e-05,2]
[355652642,1741438239752,-500.0,8.219e-05,2]
[355652643,1741438239761,-500.0,8.219e-05,2]
[355652644,1741438239771,-500.0,8.219e-05,2]
[355652645,1741438239780,-500.0,8.219e-05,2]
[355652646,1741438239790,-545.73,8.219e-05,2]
[355652647,1741438239800,-500.0,8.219e-05,2]
[355652648,1741438239810,-500.0,8.219e-05,2]
[355652649,1741438239819,-500.0,8.219e-05,2]
[355652650,1741438239829,-500.0,8.219e-05,2]
[355652651,1741438239839,-514.78456388,8.219e-05,2]
[355652652,1741438239849,-500.0,8.219e-05,2]
[355652653,1741438239858,-500.0,8.219e-05,2]
[355652654,1741438239868,-500.77445073,8.219e-05,2]
[355652655,1741438239878,-500.0,8.219e-05,2]
[355652656,1741438239887,-500.0,8.219e-05,2]
[355652657,1741438239896,-500.0,8.219e-05,2]
[355652658,1741438239906,-500.0,8.219e-05,2]
[355652659,1741438239916,-500.0,8.219e-05,2]
[355652661,1741438239925,-505.58487714,8.219e-05,2]
[355652662,1741438239935,-506.39932707,8.219e-05,2]
[355652663,1741438239944,-500.0,8.219e-05,2]
[355652664,1741438239955,-500.0,8.219e-05,2]
[355652665,1741438239964,-500.0,8.219e-05,2]
[355652666,1741438239974,-500.0,8.219e-05,2]
[355652667,1741438239984,-500.0,8.219e-05,2]
[355652668,1741438239993,-500.0,8.219e-05,2]
[355652669,1741438240003,-514.32585757,8.219e-05,2]
[355652670,1741438240012,-500.0,8.219e-05,2]
[355652671,1741438240022,-500.0,8.219e-05,2]
[355652672,1741438240031,-502.29058485,8.219e-05,2]
[355652674,1741438240041,-500.0,8.219e-05,2]
[355652675,1741438240052,-500.0,8.219e-05,2]
[355652676,1741438240061,-500.0,8.219e-05,2]
[355652677,1741438240071,-500.0,8.219e-05,2]
[355652678,1741438240080,-525.05,8.219e-05,2]
[355652679,1741438240089,-500.0,8.219e-05,2]
[355652680,1741438240099,-500.0,8.219e-05,2]
[355652681,1741438240108,-473.05563117,8.219e-05,2]
[355652682,1741438240117,-539.51,8.219e-05,2]
[355652683,1741438240127,-500.0,8.219e-05,2]
[355652684,1741438240136,-501.77108668,8.219e-05,2]
[355652685,1741438240146,-500.0,8.219e-05,2]
[355652686,1741438240155,-500.0,8.219e-05,2]
[355652687,1741438240167,-523.88072603,8.219e-05,2]
[355652688,1741438240176,-597.68,8.219e-05,2]
[355652690,1741438240186,-500.0,8.219e-05,2]
[355652691,1741438240195,-548.53,8.219e-05,2]
[355652692,1741438240205,-500.0,8.219e-05,2]
[355652694,1741438240217,-500.0,8.219e-05,2]
[355652695,1741438240227,-500.0,8.219e-05,2]
[355652696,1741438240236,-500.0,8.219e-05,2]
[355652697,1741438240245,-500.0,8.219e-05,2]
[355652698,1741438240255,-500.0,8.219e-05,2]
[355652699,1741438240264,-500.0,8.219e-05,2]
[355652700,1741438240273,-500.0,8.219e-05,2]
[355652701,1741438240282,-500.0,8.219e-05,2]
[355652702,1741438240292,-500.0,8.219e-05,2]
[355652703,1741438240301,-500.0,8.219e-05,2]
[355652704,1741438240311,-500.0,8.219e-05,2]
[355652705,1741438240323,-500.0,8.219e-05,2]
[355652706,1741438240332,-500.0,8.219e-05,2]
[355652707,1741438240342,-500.0,8.219e-05,2]
[355652708,1741438240351,-500.0,8.219e-05,2]
[355652709,1741438240361,-500.0,8.219e-05,2]
[355652710,1741438240371,-500.0,8.219e-05,2]
[355652711,1741438240380,-500.0,8.219e-05,2]
[355652712,1741438240390,-507.87725423,8.219e-05,2]
[355652713,1741438240399,-500.0,8.219e-05,2]
[355652714,1741438240408,-500.0,8.219e-05,2]
[355652715,1741438240418,-500.0,8.219e-05,2]
[355652716,1741438240427,-943.03,8.219e-05,2]
[355652717,1741438240436,-611.15,8.219e-05,2]
[355652718,1741438240446,-500.0,8.219e-05,2]
[355652719,1741438240455,-648.55,8.219e-05,2]
[355652720,1741438240469,-500.0,8.219e-05,2]
[355652721,1741438240477,-500.0,8.219e-05,2]
[355652722,1741438240487,-500.0,8.219e-05,2]
[355652723,1741438240497,-524.2689387,8.219e-05,2]
[355652724,1741438240506,-540.84,8.219e-05,2]
[355652725,1741438240516,-725.74,8.219e-05,2]
[355652726,1741438240525,-506.28742289,8.219e-05,2]
[355652727,1741438240535,-500.0,8.219e-05,2]
[355652728,1741438240544,-500.0,8.219e-05,2]
[355652729,1741438240554,-500.87023099,8.219e-05,2]
[355652730,1741438240563,-370.89607988,8.219e-05,2]
[355652731,1741438240573,-521.33,8.219e-05,2]
[355652732,1741438240582,-500.0,8.219e-05,2]
[355652733,1741438240592,-500.0,8.219e-05,2]
[355652734,1741438240601,-1099.44,8.219e-05,2]
[355652735,1741438240611,-504.07,8.219e-05,2]
[355652736,1741438240620,-500.0,8.219e-05,2]
[355652737,1741438240630,-500.0,8.219e-05,2]
[355652738,1741438240639,-500.0,8.219e-05,2]
[355652739,1741438240649,-907.3,8.219e-05,2]
[355652740,1741438240659,-784.95,8.219e-05,2]
[355652741,1741438240668,-519.23,8.219e-05,2]
[355652742,1741438240677,-500.0,8.219e-05,2]
[355652743,1741438240687,-650.91,8.219e-05,2]
[355652744,1741438240697,-500.0,8.219e-05,2]
[355652745,1741438240707,-500.0,8.219e-05,2]
[355652746,1741438240716,-500.0,8.219e-05,2]
[355652747,1741438240726,-500.0,8.219e-05,2]
[355652748,1741438240735,-331.95123084,8.219e-05,2]
[355652749,1741438240745,-544.51,8.219e-05,2]
[355652750,1741438240756,-500.0,8.219e-05,2]
[355652751,1741438240767,-500.0,8.219e-05,2]
[355652752,1741438240776,-500.0,8.219e-05,2]
[355652753,1741438240786,-563.7,8.219e-05,2]
[355652754,1741438240796,-500.0,8.219e-05,2]
[355652755,1741438240805,-500.0,8.219e-05,2]
[355652756,1741438240814,-500.0,8.219e-05,2]
[355652757,1741438240824,-500.0,8.219e-05,2]
[355652758,1741438240834,-500.0,8.219e-05,2]
[355652759,1741438240848,-693.61,8.219e-05,2]
[355652760,1741438240857,-500.0,8.219e-05,2]
[355652761,1741438240866,-676.49,8.219e-05,2]
[355652762,1741438240877,-500.0,8.219e-05,2]
[355652763,1741438240887,-502.38470985,8.219e-05,2]
[355652764,1741438240896,-1608.96,8.219e-05,2]
[355652765,1741438240906,-1004.17,8.219e-05,2]
[355652766,1741438240915,-500.0,8.219e-05,2]
[355652767,1741438240924,-529.61,8.219e-05,2]
[355652768,1741438240934,-500.0,8.219e-05,2]
[355652769,1741438240945,-559.62,8.219e-05,2]
[355652770,1741438240954,-500.0,8.219e-05,2]
[355652771,1741438240963,-640.87,8.219e-05,2]
[355652772,1741438240973,-719.07,8.219e-05,2]
[355652773,1741438240982,-500.0,8.219e-05,2]
[355652774,1741438240992,-350.0,8.219e-05,2]
[355652775,1741438241002,-500.0,8.219e-05,2]
[355652776,1741438241011,-597.99,8.219e-05,2]
[355652777,1741438241021,-500.0,8.219e-05,2]
[355652778,1741438241030,-500.0,8.219e-05,2]
[355652779,1741438241040,-500.0,8.219e-05,2]
[355652780,1741438241050,-907.84,8.219e-05,2]
[355652781,1741438241060,-691.59,8.219e-05,2]
[355652782,1741438241069,-503.11984613,8.219e-05,2]
[355652783,1741438241079,-500.0,8.219e-05,2]
[355652784,1741438241088,-500.0,8.219e-05,2]
[355652785,1741438241098,-769.46,8.219e-05,2]
[355652786,1741438241107,-503.86167932,8.219e-05,2]
[355652787,1741438241117,-555.73,8.219e-05,2]
[355652788,1741438241126,-505.48453472,8.219e-05,2]
[355652789,1741438241135,-503.05240084,8.219e-05,2]
[355652790,1741438241144,-500.0,8.219e-05,2]
[355652791,1741438241153,-500.0,8.219e-05,2]
[355652792,1741438241162,-500.0,8.219e-05,2]
[355652793,1741438241172,-517.00502832,8.219e-05,2]
[355652794,1741438241181,-500.0,8.219e-05,2]
[355652795,1741438241192,-807.19,8.219e-05,2]
[355652796,1741438241201,-502.73551934,8.219e-05,2]
[355652797,1741438241210,-803.72,8.219e-05,2]
[355652798,1741438241219,-500.0,8.219e-05,2]
[355652799,1741438241229,-500.0,8.219e-05,2]
[355652800,1741438241238,-500.0,8.219e-05,2]
[355652801,1741438241247,-791.12,8.219e-05,2]
[355652802,1741438241256,-540.41,8.219e-05,2]
[355652803,1741438241265,-500.0,8.219e-05,2]
[355652804,1741438241274,-572.99,8.219e-05,2]
[355652805,1741438241284,-500.0,8.219e-05,2]
[355652806,1741438241293,-502.53188495,8.219e-05,2]
[355652807,1741438241302,-500.0,8.219e-05,2]
[355652808,1741438241311,-500.0,8.219e-05,2]
[355652809,1741438241320,-1060.46,8.219e-05,2]
[355652810,1741438241329,-541.31,8.219e-05,2]
[355652811,1741438241339,-500.0,8.219e-05,2]
[355652812,1741438241348,-500.0,8.219e-05,2]
[355652813,1741438241358,-500.0,8.219e-05,2]
[355652814,1741438241367,-500.0,8.219e-05,2]
[355652815,1741438241376,-500.0,8.219e-05,2]
[355652816,1741438241385,-500.0,8.219e-05,2]
[355652817,1741438241394,-500.0,8.219e-05,2]
[355652818,1741438241403,-500.0,8.219e-05,2]
[355652819,1741438241412,-502.22462486,8.219e-05,2]
[355652820,1741438241422,-685.36,8.219e-05,2]
[355652821,1741438241431,-323.92600075,8.219e-05,2]
[355652822,1741438241441,-500.0,8.219e-05,2]
[355652823,1741438241451,-500.0,8.219e-05,2]
[355652824,1741438241464,-899.69,8.219e-05,2]
[355652825,1741438241474,-500.0,8.219e-05,2]
[355652826,1741438241483,-500.0,8.219e-05,2]
[355652827,1741438241492,-500.0,8.219e-05,2]
[355652828,1741438241501,-500.0,8.219e-05,2]
[355652829,1741438241510,-500.0,8.219e-05,2]
[355652830,1741438241519,-500.0,8.219e-05,2]
[355652831,1741438241529,-500.0,8.219e-05,2]
[355652832,1741438241539,-549.23,8.219e-05,2]
[355652833,1741438241548,-500.0,8.219e-05,2]
[355652834,1741438241558,-530.02212821,8.219e-05,2]
[355652835,1741438241568,-500.0,8.219e-05,2]
[355652836,1741438241578,-506.56237451,8.219e-05,2]
[355652837,1741438241588,-986.9,8.219e-05,2]
[355652838,1741438241597,-500.0,8.219e-05,2]
[355652839,1741438241607,-649.68,8.219e-05,2]
[355652840,1741438241617,-500.0,8.219e-05,2]
[355652841,1741438241627,-500.0,8.219e-05,2]
[355652842,1741438241637,-504.13735741,8.219e-05,2]
[355652843,1741438241647,-692.22,8.219e-05,2]
[355652844,1741438241657,-711.23,8.219e-05,2]
[355652845,1741438241666,-500.0,8.219e-05,2]
[355652846,1741438241675,-500.0,8.219e-05,2]
[355652847,1741438241684,-644.46,8.219e-05,2]
[355652848,1741438241695,-644.35,8.219e-05,2]
[355652849,1741438241704,-500.0,8.219e-05,2]
[355652850,1741438241714,-741.81,8.219e-05,2]
[355652851,1741438241725,-517.07,8.219e-05,2]
[355652852,1741438241734,-500.0,8.219e-05,2]
[355652853,1741438241744,-500.0,8.219e-05,2]
[355652854,1741438241753,-985.11,8.219e-05,2]
[355652855,1741438241763,-500.0,8.219e-05,2]
[355652856,1741438241773,-500.0,8.219e-05,2]
[355652857,1741438241782,-500.0,8.219e-05,2]
[355652858,1741438241791,-500.0,8.219e-05,2]
[355652859,1741438241799,-500.0,8.219e-05,2]
[355652860,1741438241808,-508.01,8.219e-05,2]
[355652861,1741438241817,-505.40523049,8.219e-05,2]
[355652862,1741438241826,-1195.5,8.219e-05,2]
[355652863,1741438241835,-769.52,8.219e-05,2]
[355652864,1741438241845,-500.0,8.219e-05,2]
[355652865,1741438241854,-743.7,8.219e-05,2]
[355652866,1741438241864,-500.0,8.219e-05,2]
[355652867,1741438241873,-500.0,8.219e-05,2]
[355652868,1741438241883,-500.0,8.219e-05,2]
[355652869,1741438241892,-500.0,8.219e-05,2]
[355652870,1741438241904,-500.0,8.219e-05,2]
[355652871,1741438241913,-733.96,8.219e-05,2]
[355652872,1741438241923,-500.0,8.219e-05,2]
[355652873,1741438241932,-1080.42,8.219e-05,2]
[355652874,1741438241943,-1237.41,8.219e-05,2]
[355652875,1741438241952,-500.0,8.219e-05,2]
[355652876,1741438241962,-500.0,8.219e-05,2]
[355652877,1741438241971,-500.0,8.219e-05,2]
[355652878,1741438241980,-500.0,8.219e-05,2]
[355652879,1741438241990,-500.0,8.219e-05,2]
[355652880,1741438241999,-500.0,8.219e-05,2]
[355652881,1741438242008,-500.0,8.219e-05,2]